bitfinex-derivatives/quotes_SOLF0:USTF0_20240907
["timestamp","ask_amount","ask_price","bid_price","bid_amount"]
[1725745954624,9.92891401,127.32,127.24,13.6418149]
[1725745954826,0.28891401,127.31,127.24,9.64]
[1725745955026,3.928,127.3,127.27,3.9286]
[1725745956726,3.9283,127.29,127.26,7.94485535]
[1725745957027,3.9283,127.29,127.26,3.9289]
[1725745957418,3.9283,127.29,127.26,7.95271513]
[1725745957620,3.9283,127.29,127.26,3.9289]
[1725745958232,3.9283,127.29,127.26,7.88119112]
[1725745960327,3.9283,127.29,127.27,3.9287]
[1725745969717,3.928,127.3,127.27,3.9287]
[1725745973028,3.9283,127.29,127.26,3.929]
[1725745976332,3.928,127.3,127.27,3.9287]
[1725745979933,13.6538,127.33,127.24,3.86976342]
[1725745980133,0.28890285,127.32,127.21,1.3179]
[1725745980345,0.28890285,127.32,127.25,9.64]
[1725745980646,3.9281,127.3,127.27,3.9286]
[1725745981544,3.9278,127.31,127.27,9.64]
[1725745982949,3.9278,127.31,127.28,3.9284]
[1725745984252,24.58831836,127.39,127.27,9.64]
[1725745984548,24.58831836,127.39,127.28,9.64]
[1725745984549,9.64,127.36,127.28,9.64]
[1725745984750,13.65030198,127.36,127.28,9.64]
[1725745984950,13.65030198,127.36,127.3,3.9277]
[1725745985750,3.9269,127.34,127.31,3.9276]
[1725745986354,3.9272,127.33,127.3,3.9277]
[1725745986555,9.64,127.35,127.3,3.9277]
[1725745987057,3.927,127.33,127.3,3.9277]
[1725745987949,3.927,127.33,127.31,3.9276]
[1725745988856,3.927,127.33,127.3,3.9277]
[1725745992561,3.9273,127.32,127.3,3.9277]
[1725745993757,3.9273,127.32,127.29,3.928]
[1725745995455,12.3531,127.33,127.27,7.78604694]
[1725745995456,3.9279,127.3,127.27,7.78604694]
[1725745995655,3.9279,127.3,127.24,9.64]
[1725745996060,3.9279,127.3,127.28,3.9284]
[1725745996962,3.9278,127.31,127.28,3.9284]
[1725745997863,2.7131,127.33,127.29,3.88408188]
[1725745998062,13.50639838,127.35,127.27,10.9468]
[1725745998466,3.9273,127.32,127.29,3.9281]
[1725745998768,3.9273,127.32,127.29,3.85578829]
[1725745998966,3.9271,127.33,127.3,3.9278]
[1725746001572,2.6792,127.37,127.29,3.83221029]
[1725746001765,9.9288032,127.36,127.28,9.64]
[1725746001967,9.64,127.35,127.28,9.64]
[1725746002164,3.9272,127.33,127.29,3.9279]
[1725746002561,3.9272,127.33,127.3,3.9277]
[1725746002765,3.9272,127.33,127.29,3.99112123]
[1725746003972,3.9268,127.34,127.29,3.99112123]
[1725746004171,3.9268,127.34,127.29,13.62255813]
[1725746004675,3.9268,127.34,127.31,3.9274]
[1725746005582,3.927,127.33,127.3,3.9276]
[1725746007880,3.9273,127.32,127.29,3.9281]
[1725746009674,9.64,127.36,127.29,3.9281]
[1725746009875,0.28882268,127.35,127.29,3.9281]
[1725746010078,9.64,127.34,127.29,3.9281]
[1725746010371,1.3333,127.33,127.29,3.9281]
[1725746010585,3.9276,127.31,127.29,3.9281]
[1725746012884,3.9274,127.32,127.29,3.9281]
[1725746014872,3.9277,127.31,127.29,3.9281]
[1725746017679,5.21049771,127.37,127.29,3.85933202]
[1725746017876,9.92881897,127.36,127.29,9.64]
[1725746018086,9.64,127.36,127.3,4.01453831]
[1725746018287,3.9268,127.34,127.3,4.01453831]
[1725746020286,3.9268,127.34,127.32,3.9271]
[1725746020884,2.7297,127.37,127.3,4.01453831]
[1725746021089,12.3697,127.37,127.29,9.64]
[1725746021482,3.9265,127.35,127.32,3.927]
[1725746024892,3.9267,127.34,127.32,3.927]
[1725746029391,12.3697,127.37,127.32,3.927]
[1725746029392,3.9265,127.35,127.32,3.927]
[1725746035600,3.9267,127.34,127.32,3.927]
[1725746037804,12.3697,127.37,127.31,3.9274]
[1725746038011,9.64,127.35,127.31,3.9274]
[1725746039402,3.9268,127.34,127.31,3.9274]
[1725746040415,3.927,127.33,127.3,3.9278]
[1725746040612,9.64,127.36,127.29,3.85850506]
[1725746040811,2.7297,127.37,127.28,9.64]
[1725746041012,3.9266,127.35,127.32,3.9271]
[1725746043317,3.9267,127.34,127.32,3.9271]
[1725746044021,3.927,127.33,127.24,1.3406]
[1725746044213,3.927,127.33,127.27,9.64]
[1725746044613,3.927,127.33,127.3,3.9277]
[1725746045117,5.3305,127.33,127.3,3.9277]
[1725746045511,3.9273,127.32,127.3,3.9277]
[1725746046420,3.9273,127.32,127.29,3.928]
[1725746051428,3.9273,127.32,127.3,3.9278]
[1725746052029,3.9273,127.32,127.29,3.928]
[1725746086063,3.9273,127.32,127.3,3.9279]
[1725746102561,9.64,127.32,127.24,1.3406]
[1725746102770,2.6974,127.33,127.14,11.88765761]
[1725746103069,9.64,127.24,127.19,1.3764]
[1725746103267,9.64,127.23,127.16,9.64]
[1725746103478,3.9304,127.22,127.16,9.64]
[1725746103963,3.9304,127.22,127.19,3.9312]
[1725746104372,3.9304,127.22,127.16,9.64]
[1725746104765,11.53630208,127.21,127.18,3.9314]
[1725746104964,7.60560208,127.2,127.15,11.0164]
[1725746105164,7.60560208,127.19,127.16,3.932]
[1725746105367,7.60560208,127.18,127.16,3.932]
[1725746105573,3.9313,127.19,127.16,3.932]
[1725746105574,7.60560208,127.17,127.16,3.932]
[1725746107266,3.9313,127.19,127.13,144.04260492]
[1725746107569,11.53578512,127.18,127.15,3.9324]
[1725746107763,7.60418512,127.17,127.15,3.9324]
[1725746108066,7.60418512,127.16,127.15,3.9324]
[1725746109059,9.64,127.2,127.13,134.40260492]
[1725746109060,9.64,127.2,127.13,130.4242197]
[1725746109263,7.60446977,127.16,127.13,130.4242197]
[1725746109570,7.60446977,127.15,127.13,130.4242197]
[1725746109768,3.9322,127.16,127.13,134.3572197]
[1725746110167,7.60371853,127.15,127.13,134.3572197]
[1725746110474,3.9322,127.16,127.12,3.9334]
[1725746110666,7.60342967,127.15,127.12,3.9334]
[1725746110866,3.9322,127.16,127.12,3.9334]
[1725746111267,7.60453542,127.15,127.12,3.9334]
[1725746111469,3.9322,127.16,127.12,3.9334]
[1725746111670,3.9325,127.15,127.12,3.9334]
[1725746113270,3.9325,127.15,127.11,3.9337]
[1725746114976,3.9329,127.14,127.11,3.9337]
[1725746115178,2.7478,127.16,127.06,2.6729]
[1725746115379,3.9333,127.13,127.07,3.88491189]
[1725746115782,3.9333,127.13,127.09,3.9342]
[1725746117777,13.5733,127.13,127.1,3.9341]
[1725746124093,13.5736,127.12,127.09,3.9342]
[1725746126290,3.9338,127.11,127.09,3.9342]
[1725746130298,4.0971,127.16,127.09,3.9342]
[1725746130502,9.64,127.13,127.09,3.9342]
[1725746131198,3.9337,127.12,127.09,3.9342]
[1725746131703,9.64,127.11,127.06,1.3322]
[1725746132202,9.64,127.11,127.08,3.9345]
[1725746132800,13.574,127.11,127.08,3.9345]
[1725746134993,3.934,127.11,127.08,3.9345]
[1725746135201,3.9331,127.13,127.1,3.9338]
[1725746135403,9.64,127.12,127.06,1.3322]
[1725746135598,9.64,127.12,127.07,4.02439984]
[1725746135800,13.5736,127.12,127.08,3.9344]
[1725746136201,9.64,127.11,127.02,1.3294]
[1725746136501,13.574,127.11,127.03,10.9941]
[1725746137109,13.574,127.11,127.07,3.9348]
[1725746137494,3.9341,127.1,127.07,3.9348]
[1725746141406,3.9341,127.1,127.08,3.9347]
[1725746141407,9.64,127.1,127.08,3.9347]
[1725746142506,3.9339,127.11,127.08,3.9347]
[1725746143115,13.5739,127.11,127.08,3.9347]
[1725746143508,3.9341,127.1,127.08,3.9347]
[1725746143904,13.5741,127.1,127.08,3.9347]
[1725746144611,13.5741,127.1,127.07,3.9349]
[1725746145319,13.5741,127.1,127.03,1.3541]
[1725746146018,13.5741,127.1,127.06,3.935]
[1725746146420,3.9344,127.09,127.06,3.935]
[1725746154526,3.9348,127.08,127.05,3.9355]
[1725746154726,13.6215881,127.1,127.03,1.3541]
[1725746154915,9.64,127.08,127.03,1.3541]
[1725746155121,9.64,127.08,127.06,3.9351]
[1725746163230,9.64,127.07,127.05,3.9355]
[1725746165434,7.6169352,127.06,127.05,3.9355]
[1725746165828,13.575,127.07,127.05,3.9355]
[1725746166228,7.61697085,127.06,127.05,3.9355]
[1725746166426,13.575,127.07,127.05,3.9355]
[1725746167431,7.61700525,127.06,127.05,3.9355]
[1725746167733,13.575,127.07,127.05,3.9355]
[1725746169835,13.575,127.07,127.01,4.02936314]
[1725746170340,13.575,127.07,127.04,3.9357]
[1725746171231,9.64,127.05,127.03,3.936]
[1725746173235,13.5756,127.05,127.03,3.936]
[1725746173435,13.5756,127.05,127.02,3.9363]
[1725746175135,9.64,127.04,127.02,3.9363]
[1725746175941,9.64,127.04,126.99,147.80756924]
[1725746176341,13.5762,127.04,126.99,147.80756924]
[1725746177143,13.5762,127.04,127.0,3.9371]
[1725746177337,3.9362,127.04,127.0,3.9371]
[1725746177739,13.5762,127.04,127.0,3.9371]
[1725746180141,3.9363,127.03,127.0,3.9371]
[1725746180337,3.9326,127.09,127.01,3.9367]
[1725746180643,9.64,127.05,127.01,3.9367]
[1725746181354,3.9361,127.04,127.01,3.9367]
[1725746182242,3.9361,127.04,127.0,3.937]
[1725746184547,3.9363,127.03,127.0,3.937]
[1725746188651,9.64,127.03,126.99,151.74486924]
[1725746188855,9.64,127.02,126.99,143.93976356]
[1725746189248,3.937,127.01,126.99,143.93976356]
[1725746190850,3.9372,127.0,126.99,143.93976356]
[1725746192449,3.9372,127.0,126.97,7.8380866]
[1725746192648,9.64,126.99,126.94,3.92156701]
[1725746192848,9.64,126.98,126.91,9.64]
[1725746193153,9.64,126.98,126.91,4.0322167]
[1725746193346,9.64,126.98,126.9,13.6167]
[1725746193548,9.64,126.97,126.9,13.6167]
[1725746193754,13.5783,126.97,126.9,13.6167]
[1725746194054,7.5931124,126.96,126.93,3.9393]
[1725746194253,9.64,126.97,126.9,7.94739561]
[1725746194443,11.53049297,126.96,126.9,17.58739561]
[1725746194648,9.64,126.97,126.9,17.58739561]
[1725746194957,7.59131393,126.96,126.93,3.9392]
[1725746195254,13.5783,126.97,126.93,3.9392]
[1725746195455,7.59107973,126.96,126.93,3.9392]
[1725746195659,13.5783,126.97,126.93,3.9392]
[1725746195854,7.59117028,126.96,126.93,3.9392]
[1725746196055,13.5783,126.97,126.93,3.9392]
[1725746196356,7.59107064,126.96,126.93,3.9392]
[1725746196561,9.64,126.97,126.93,3.9392]
[1725746196954,7.59095478,126.96,126.9,17.58739561]
[1725746197159,9.64,126.97,126.9,17.58739561]
[1725746197551,3.9387,126.95,126.92,3.9394]
[1725746197753,9.64,126.97,126.9,17.58739561]
[1725746198148,7.59104146,126.96,126.92,3.9394]
[1725746198445,9.64,126.97,126.9,17.58739561]
[1725746198755,7.59055891,126.96,126.9,17.58739561]
[1725746198957,9.64,126.97,126.9,17.58739561]
[1725746199350,11.52922778,126.96,126.9,17.58739561]
[1725746199551,3.9387,126.96,126.9,17.58739561]
[1725746200259,13.5787,126.96,126.9,17.58739561]
[1725746200461,13.5787,126.96,126.93,3.9393]
[1725746200657,9.64,126.96,126.93,3.9393]
[1725746201462,3.9384,126.97,126.9,17.58739561]
[1725746201672,13.5784,126.97,126.9,17.58739561]
[1725746202665,13.5784,126.97,126.93,3.9391]
[1725746204152,3.9384,126.96,126.93,3.9391]
[1725746205769,13.5782,126.97,126.93,3.9391]
[1725746207265,9.64,126.97,126.9,5.32699561]
[1725746208072,9.64,126.97,126.93,3.9391]
[1725746208269,9.64,126.97,126.9,5.32699561]
[1725746209367,9.64,126.97,126.94,3.939]
[1725746212771,9.64,126.97,126.95,3.9387]
[1725746212977,9.64,126.99,126.9,17.59569561]
[1725746213171,7.59032944,126.98,126.9,17.59569561]
[1725746213375,9.64,126.99,126.9,17.59569561]
[1725746213566,7.59033926,126.98,126.96,3.9383]
[1725746213770,9.64,126.99,126.96,3.9383]
[1725746214080,6.7164,127.01,126.97,3.9379]
[1725746214271,9.64,126.99,126.92,9.64]
[1725746215379,9.64,126.99,126.97,3.9379]
[1725746215679,9.64,126.99,126.92,9.64]
[1725746216770,3.9367,127.02,126.98,3.9376]
[1725746216978,9.64,127.0,126.98,3.9376]
[1725746221076,3.9369,127.01,126.98,3.9376]
[1725746221277,9.64,127.0,126.98,3.9376]
[1725746221874,13.5769,127.01,126.98,3.9376]
[1725746224381,3.9372,127.0,126.97,3.9379]
[1725746224577,9.64,126.98,126.94,1.2748]
[1725746224782,9.64,126.98,126.95,3.9385]
[1725746225083,9.64,126.96,126.9,3.97069561]
[1725746225286,3.93312854,126.97,126.85,104.43133327]
[1725746225287,9.64,126.95,126.87,9.64]
[1725746226187,9.64,126.93,126.9,3.94]
[1725746228786,9.64,126.93,126.88,3.92631993]
[1725746228986,9.64,126.93,126.86,12.3158]
[1725746229186,5.2535,126.96,126.86,12.3158]
[1725746229388,9.64,126.93,126.86,12.3158]
[1725746230388,9.64,126.93,126.91,3.9398]
[1725746232187,9.64,126.92,126.89,3.9403]
[1725746232382,9.64,126.9,126.89,3.9403]
[1725746233585,9.64,126.9,126.88,3.9407]
[1725746233883,9.64,126.9,126.84,11.0383]
[1725746234885,9.64,126.9,126.88,3.9407]
[1725746235385,9.64,126.9,126.84,1.3983]
[1725746235577,9.64,126.9,126.84,11.0383]
[1725746236189,9.64,126.9,126.88,3.9407]
[1725746236382,9.64,126.9,126.84,11.0383]
[1725746237891,9.64,126.93,126.9,3.9401]
[1725746242193,9.64,126.93,126.88,3.96240542]
[1725746242194,13.5794,126.93,126.89,3.9404]
[1725746243296,9.64,126.93,126.9,3.9402]
[1725746244092,9.64,126.91,126.88,3.9409]
[1725746244293,9.64,126.89,126.82,130.14578109]
[1725746244986,9.64,126.89,126.82,120.50578109]
[1725746245191,9.64,126.89,126.82,130.14578109]
[1725746245387,9.64,126.89,126.86,3.9412]
[1725746246289,9.64,126.88,126.82,120.50578109]
[1725746246698,3.9408,126.89,126.85,3.9417]
[1725746246999,13.5808,126.89,126.85,3.9417]
[1725746247391,9.64,126.87,126.85,3.9417]
[1725746249704,9.64,126.87,126.84,3.942]
[1725746250501,9.64,126.86,126.83,3.9424]
[1725746250803,9.64,126.86,126.82,119.15098109]
[1725746251203,9.64,126.86,126.84,3.9421]
[1725746253405,9.64,126.86,126.82,119.15098109]
[1725746253406,9.64,126.86,126.83,3.9422]
[1725746261905,13.5817,126.86,126.82,7.88488494]
[1725746262108,13.5817,126.86,126.8,5.0]
[1725746262109,6.5535,126.86,126.8,5.0]
[1725746262305,2.6118,126.86,126.8,8.91696633]
[1725746262510,9.64,126.85,126.83,3.9423]
[1725746263413,13.5818,126.85,126.82,3.9427]
[1725746264318,9.64,126.85,126.82,3.9427]
[1725746265805,13.5819,126.85,126.82,3.9427]
[1725746266003,9.64,126.83,126.81,3.9429]
[1725746266207,3.9419,126.85,126.81,3.9429]
[1725746266511,9.64,126.83,126.81,3.9429]
[1725746272012,9.64,126.82,126.8,8.9432]
[1725746272214,9.64,126.82,126.8,5.0]
[1725746273309,9.64,126.81,126.8,5.0]
[1725746274407,9.64,126.81,126.8,2.8756]
[1725746276415,13.5831,126.81,126.8,2.8756]
[1725746276615,13.5831,126.81,126.74,1.2948]
[1725746276616,9.64,126.81,126.74,1.2948]
[1725746276812,9.64,126.81,126.77,3.9441]
[1725746276813,9.64,126.79,126.77,3.9441]
[1725746277018,9.64,126.79,126.77,7.91222874]
[1725746277210,9.64,126.79,126.77,3.9441]
[1725746277815,3.9432,126.81,126.77,3.9441]
[1725746278013,9.64,126.79,126.77,3.9441]
[1725746278215,3.94327863,126.83,126.74,1.2948]
[1725746278438,9.64,126.78,126.75,3.94761754]
[1725746278922,9.64,126.78,126.76,3.9444]
[1725746279612,9.64,126.78,126.75,3.94761754]
[1725746280317,9.64,126.78,126.76,3.9444]
[1725746280819,5.2478,126.81,126.76,3.9444]
[1725746281021,9.64,126.78,126.76,3.9444]
[1725746281315,1.3045,126.81,126.75,3.94761754]
[1725746281715,9.64,126.78,126.75,3.94761754]
[1725746282412,9.64,126.78,126.76,3.9445]
[1725746283219,1.3045,126.81,126.75,3.94761754]
[1725746283521,9.64,126.78,126.75,3.94761754]
[1725746284119,9.64,126.78,126.76,3.9444]
[1725746288017,9.64,126.78,126.77,3.9443]
[1725746290126,9.64,126.79,126.77,3.9443]
[1725746291627,9.64,126.78,126.75,3.91755424]
[1725746291821,9.64,126.78,126.7,2.7117]
[1725746291822,2.6276,126.81,126.71,11.0137]
[1725746292125,9.64,126.78,126.71,14.97819704]
[1725746292329,9.64,126.78,126.75,3.9446]
[1725746292927,9.64,126.78,126.76,3.9444]
[1725746293128,9.64,126.78,126.71,5.33819704]
[1725746293515,9.64,126.78,126.75,3.9447]
[1725746293726,2.6276,126.81,126.75,3.9447]
[1725746293927,9.64,126.78,126.75,3.9447]
[1725746294826,2.6276,126.81,126.76,3.9446]
[1725746295025,9.64,126.78,126.76,3.9446]
[1725746298218,2.6276,126.81,126.71,14.97819704]
[1725746298219,6.5707,126.81,126.77,3.9442]
[1725746298419,1.324,126.85,126.74,9.64]
[1725746298619,7.56954031,126.84,126.75,2.7149]
[1725746298825,9.64,126.82,126.8,3.9432]
[1725746299024,9.64,126.82,126.75,3.9928]
[1725746299220,9.64,126.82,126.8,3.9432]
[1725746299433,9.64,126.82,126.8,7.90169771]
[1725746300332,9.64,126.82,126.81,3.9431]
[1725746300725,1.2991,126.88,126.81,3.9431]
[1725746300930,9.64,126.84,126.81,3.9431]
[1725746301926,9.64,126.84,126.82,3.9425]
[1725746302930,9.64,126.84,126.83,3.9424]
[1725746303429,9.64,126.84,126.81,4.00583642]
[1725746303627,9.64,126.84,126.82,3.9426]
[1725746305030,9.64,126.84,126.83,3.9424]
[1725746306736,3.9417,126.86,126.83,3.9424]
[1725746307035,17.20004399,126.85,126.83,3.9424]
[1725746307230,7.56004881,126.84,126.83,3.9424]
[1725746307630,7.56004881,126.84,126.82,3.9426]
[1725746307834,13.5818,126.85,126.79,1.3893]
[1725746308137,7.55970081,126.84,126.82,3.9425]
[1725746308339,13.5818,126.85,126.82,3.9425]
[1725746308637,7.55957835,126.84,126.82,3.9425]
[1725746308831,13.5818,126.85,126.82,3.9425]
[1725746309030,7.55951967,126.84,126.82,3.9425]
[1725746309235,13.5818,126.85,126.82,3.9425]
[1725746309540,9.64,126.83,126.76,9.64]
[1725746309729,9.64,126.83,126.76,14.94137907]
[1725746309933,9.64,126.83,126.81,3.9429]
[1725746310240,9.64,126.84,126.76,14.94137907]
[1725746311438,9.64,126.84,126.81,3.9429]
[1725746311439,7.55905705,126.83,126.81,3.9429]
[1725746311735,9.64,126.84,126.81,3.9429]
[1725746311930,7.55912294,126.83,126.81,3.9429]
[1725746312135,9.64,126.84,126.81,3.9429]
[1725746312345,9.64,126.84,126.82,3.9427]
[1725746312637,7.55779327,126.83,126.82,3.9427]
[1725746315637,13.5821,126.84,126.82,3.9427]
[1725746315933,7.55608807,126.83,126.82,3.9427]
[1725746319034,13.5818,126.86,126.78,9.64]
[1725746319035,13.5818,126.86,126.83,3.9424]
[1725746319626,13.5818,126.86,126.83,7.81069652]
[1725746320744,13.5818,126.86,126.83,3.86829652]
[1725746320934,13.5818,126.86,126.78,9.64]
[1725746322043,13.5818,126.86,126.83,3.9421]
[1725746322337,13.5818,126.86,126.83,7.8560522]
[1725746323334,13.5818,126.86,126.84,3.9421]
[1725746327936,3.9418,126.86,126.84,3.9421]
[1725746328137,13.5818,126.86,126.84,3.9421]
[1725746330943,13.5818,126.86,126.83,7.8562522]
[1725746331246,13.5818,126.86,126.83,3.9423]
[1725746331745,13.5818,126.86,126.83,7.95066546]
[1725746331934,13.5818,126.86,126.83,3.9423]
[1725746332542,13.5818,126.86,126.83,7.94869381]
[1725746333246,13.5818,126.86,126.83,4.00639381]
[1725746333247,3.9419,126.85,126.83,4.00639381]
[1725746333440,3.9419,126.85,126.82,3.9426]
[1725746333638,9.64,126.86,126.82,3.9426]
[1725746334740,3.9421,126.85,126.82,3.9426]
[1725746335246,9.64,126.86,126.82,3.9426]
[1725746336042,3.9419,126.85,126.82,3.9426]
[1725746336345,3.9419,126.85,126.79,9.64]
[1725746336849,3.9419,126.85,126.82,3.9425]
[1725746338645,3.9421,126.84,126.82,3.9425]
[1725746338845,9.64,126.86,126.81,3.9429]
[1725746339044,9.64,126.84,126.77,102.13022638]
[1725746339346,9.64,126.85,126.8,3.9431]
[1725746340441,3.9423,126.84,126.77,111.77022638]
[1725746340951,9.64,126.85,126.77,102.13022638]
[1725746341150,9.64,126.85,126.77,111.77022638]
[1725746341851,9.64,126.85,126.79,3.9436]
[1725746342048,9.64,126.85,126.77,102.13022638]
[1725746342449,3.9426,126.83,126.78,3.9438]
[1725746342948,13.5829,126.82,126.77,104.67822638]
[1725746343141,11.0505,126.82,126.77,100.73412638]
[1725746343752,14.9934,126.82,126.77,104.67822638]
[1725746344248,13.5834,126.8,126.76,3.98217907]
[1725746344453,1.4105,126.82,126.69,10.5695]
[1725746344454,9.64,126.79,126.7,1.3595]
[1725746344641,9.64,126.76,126.69,1.3397]
[1725746344851,9.64,126.76,126.71,3.9461]
[1725746345053,9.64,126.73,126.68,3.86071456]
[1725746345242,9.64,126.73,126.65,9.64]
[1725746345447,9.64,126.73,126.65,13.67092214]
[1725746346045,9.64,126.73,126.65,9.64]
[1725746346455,13.5856,126.73,126.65,13.68491277]
[1725746346647,9.64,126.74,126.67,9.64]
[1725746346843,11.0505,126.75,126.68,9.64]
[1725746347046,1.4105,126.75,126.7,9.64]
[1725746347350,1.4105,126.75,126.72,3.9457]
[1725746348353,1.4105,126.75,126.73,3.9454]
[1725746349550,10.9509,126.77,126.74,3.9452]
[1725746350747,9.64,126.76,126.69,2.7393]
[1725746350948,9.64,126.76,126.69,12.3793]
[1725746351345,9.64,126.76,126.73,3.9454]
[1725746354157,13.5846,126.76,126.72,3.9457]
[1725746354353,9.64,126.76,126.69,12.3793]
[1725746356254,9.64,126.76,126.7,9.64]
[1725746356454,10.9509,126.77,126.74,3.9452]
[1725746357355,10.9509,126.77,126.7,9.64]
[1725746357974,10.9509,126.77,126.75,3.9446]
[1725746359248,9.64,126.77,126.75,3.9446]
[1725746359452,9.64,126.77,126.71,9.64]
[1725746359652,1.3287,126.78,126.71,9.64]
[1725746360454,1.3287,126.78,126.76,3.9444]
[1725746360651,1.3671,126.79,126.73,9.64]
[1725746360852,1.3671,126.79,126.74,9.64]
[1725746361261,1.3671,126.79,126.77,3.944]
[1725746361753,9.64,126.81,126.78,3.944]
[1725746363157,9.64,126.81,126.79,3.9437]
[1725746364363,9.64,126.81,126.8,3.9434]
[1725746364655,1.34,126.83,126.76,13.60441723]
[1725746364960,10.98,126.83,126.81,3.9429]
[1725746366258,1.2963,126.86,126.78,9.64]
[1725746366458,10.9363,126.86,126.78,9.64]
[1725746367163,10.9363,126.86,126.84,3.942]
[1725746367668,10.9363,126.86,126.8,9.64]
[1725746367971,9.64,126.86,126.8,9.64]
[1725746369364,9.64,126.86,126.85,3.9418]
[1725746369975,13.581,126.88,126.85,3.9418]
[1725746372275,1.3353,126.89,126.83,13.60293568]
[1725746372478,1.3353,126.89,126.83,9.64]
[1725746372673,5.2759,126.89,126.83,9.64]
[1725746372875,1.3353,126.89,126.83,13.57927401]
[1725746373188,1.3353,126.89,126.85,9.64]
[1725746373810,1.3353,126.89,126.87,3.9411]
[1725746374583,3.9401,126.91,126.88,3.9408]
[1725746376176,13.5798,126.92,126.89,3.9405]
[1725746376583,3.9398,126.92,126.9,3.9402]
[1725746376783,3.9398,126.92,126.86,9.64]
[1725746377281,3.9398,126.92,126.89,3.9404]
[1725746386592,6.5495,126.93,126.9,3.9402]
[1725746391686,3.9395,126.93,126.9,3.9402]
[1725746391987,3.9392,126.94,126.89,9.64]
[1725746392494,3.9392,126.94,126.91,3.9396]
[1725746392695,3.9392,126.94,126.89,9.64]
[1725746392895,3.9392,126.94,126.91,3.9397]
[1725746393989,3.9392,126.94,126.92,3.9394]
[1725746394393,5.3351,126.95,126.92,3.9394]
[1725746397894,5.3351,126.95,126.9,13.51473711]
[1725746397895,5.3351,126.95,126.93,3.9393]
[1725746400297,2.7495,126.99,126.94,9.64]
[1725746401095,6.6871,126.99,126.96,3.9381]
[1725746401296,1.3552,127.01,126.96,13.5781]
[1725746401695,3.9376,126.99,126.96,13.5781]
[1725746402395,10.9952,127.01,126.95,3.9385]
[1725746402596,1.3552,127.01,126.95,3.9385]
[1725746402798,10.9952,127.01,126.95,3.9385]
[1725746403004,3.9379,126.98,126.95,3.9385]
[1725746403599,9.64,127.0,126.91,2.7044]
[1725746403796,1.3552,127.01,126.9,3.87473711]
[1725746403797,9.64,126.97,126.9,3.87473711]
[1725746404108,3.9389,126.95,126.91,9.64]
[1725746404297,3.9389,126.95,126.92,3.9395]
[1725746404808,3.9392,126.94,126.91,13.5799]
[1725746405603,3.9392,126.94,126.91,3.9399]
[1725746405998,9.64,126.95,126.89,9.64]
[1725746406507,3.9395,126.93,126.89,13.5803]
[1725746407100,3.9395,126.93,126.9,3.9402]
[1725746408308,3.9403,126.9,126.87,3.9411]
[1725746409112,3.9403,126.9,126.86,13.5814]
[1725746409317,3.9407,126.89,126.86,13.5814]
[1725746410404,1.3747,126.92,126.83,3.93927401]
[1725746410602,1.3747,126.92,126.85,9.64]
[1725746411002,3.9405,126.9,126.86,3.9415]
[1725746413307,1.3747,126.92,126.86,3.9415]
[1725746413308,3.9406,126.89,126.86,3.9415]
[1725746413816,3.9404,126.9,126.87,3.9411]
[1725746415013,3.9401,126.91,126.88,13.5808]
[1725746415315,9.64,126.94,126.88,9.64]